[Event "Titled Tuesday Blitz May 25 2021"]
[White "Onyshchuk, Volodymyr"]
[Black "Potapova, Margarita"]
[WhiteFideId "14114038"]
[BlackFideId "14126869"]
[WhiteElo "2605"]
[BlackElo "2229"]
[Result "1-0"]
[Round "03"]
[TimeControl "180+1"]
[Date "2021.05.25"]
[WhiteClock "0:02:16"]
[BlackClock "0:01:07"]

1. Nf3 {[%clk 0:03:00]}  Nf6 {[%clk 0:02:59]} 2. g3 {[%clk 0:03:01]}  e6 {[%clk 0:02:50]} 3. Bg2 {[%clk 0:03:02]}  d5 {[%clk 0:02:50]} 4. O-O {[%clk 0:03:02]}  c5 {[%clk 0:02:50]} 5. d3 {[%clk 0:03:02]}  Nc6 {[%clk 0:02:50]} 6. Nbd2 {[%clk 0:03:03]}  g6 {[%clk 0:02:51]} 7. e4 {[%clk 0:03:01]}  Bg7 {[%clk 0:02:51]} 8. exd5 {[%clk 0:02:58]}  Nxd5 {[%clk 0:02:42]} 9. Nb3 {[%clk 0:02:58]}  Qe7 {[%clk 0:02:21]} 10. d4 {[%clk 0:02:53]}  cxd4 {[%clk 0:02:17]} 11. Nfxd4 {[%clk 0:02:51]}  Nxd4 {[%clk 0:02:13]} 12. Nxd4 {[%clk 0:02:51]}  O-O {[%clk 0:02:13]} 13. c3 {[%clk 0:02:38]}  Rd8 {[%clk 0:02:09]} 14. Qb3 {[%clk 0:02:37]}  Nb4 {[%clk 0:01:55]} 15. Be3 {[%clk 0:02:31]}  Nd3 {[%clk 0:01:45]} 16. Rad1 {[%clk 0:02:28]}  Nc5 {[%clk 0:01:43]} 17. Qa3 {[%clk 0:02:28]}  Bf8 {[%clk 0:01:19]} 18. Nb5 {[%clk 0:02:18]}  Nd3 {[%clk 0:01:08]} 19. Qxe7 {[%clk 0:02:16]}  Bxe7 {[%clk 0:01:09]} 20. Nc7 {[%clk 0:02:16]}  Rb8 {[%clk 0:01:07]} 21. Bxa7 {[%clk 0:02:16]} 1-0


[Site "https://www.chess.com"]

[Event "Titled Tuesday Blitz May 25 2021"]
[White "Ozkan, Ervin"]
[Black "Yuan, Qingyu"]
[WhiteFideId "6306004"]
[BlackFideId "8609772"]
[WhiteElo "2545"]
[BlackElo "2764"]
[Result "0-1"]
[Round "03"]
[TimeControl "180+1"]
[Date "2021.05.25"]
[WhiteClock "0:00:35"]
[BlackClock "0:00:33"]

1. d4 {[%clk 0:03:00]}  Nf6 {[%clk 0:03:00]} 2. Nf3 {[%clk 0:03:00]}  g6 {[%clk 0:03:00]} 3. Bf4 {[%clk 0:03:00]}  Bg7 {[%clk 0:03:00]} 4. e3 {[%clk 0:03:00]}  d6 {[%clk 0:03:00]} 5. h3 {[%clk 0:03:01]}  O-O {[%clk 0:02:59]} 6. Be2 {[%clk 0:03:01]}  c5 {[%clk 0:02:59]} 7. c3 {[%clk 0:03:01]}  cxd4 {[%clk 0:02:57]} 8. exd4 {[%clk 0:03:00]}  Nc6 {[%clk 0:02:51]} 9. O-O {[%clk 0:03:00]}  Nd5 {[%clk 0:02:39]} 10. Bh2 {[%clk 0:02:59]}  e5 {[%clk 0:02:38]} 11. dxe5 {[%clk 0:02:38]}  dxe5 {[%clk 0:02:37]} 12. Nbd2 {[%clk 0:02:35]}  Qe7 {[%clk 0:02:27]} 13. Re1 {[%clk 0:02:19]}  Bf5 {[%clk 0:02:13]} 14. Bb5 {[%clk 0:02:16]}  e4 {[%clk 0:01:35]} 15. g4 {[%clk 0:01:17]}  Qc5 {[%clk 0:01:12]} 16. Bxc6 {[%clk 0:01:16]}  bxc6 {[%clk 0:01:12]} 17. Nxe4 {[%clk 0:01:16]}  Bxe4 {[%clk 0:01:10]} 18. Rxe4 {[%clk 0:01:17]}  Rfe8 {[%clk 0:01:04]} 19. Qe2 {[%clk 0:01:13]}  Nf6 {[%clk 0:01:00]} 20. Re5 {[%clk 0:01:10]}  Rxe5 {[%clk 0:00:55]} 21. Bxe5 {[%clk 0:01:10]}  Re8 {[%clk 0:00:53]} 22. Re1 {[%clk 0:01:04]}  Qd5 {[%clk 0:00:45]} 23. c4 {[%clk 0:00:48]}  Qa5 {[%clk 0:00:45]} 24. Bc3 {[%clk 0:00:40]}  Rxe2 {[%clk 0:00:39]} 25. Bxa5 {[%clk 0:00:40]}  Rxb2 {[%clk 0:00:39]} 26. Rd1 {[%clk 0:00:35]}  h6 {[%clk 0:00:33]} 27. Rd8+ {[%clk 0:00:35]}  Kh7 {[%clk 0:00:33]} 28. Rd7 {[%clk 0:00:35]}  Nxd7 {[%clk 0:00:33]} 0-1


[Site "https://www.chess.com"]

[Event "Titled Tuesday Blitz May 25 2021"]
[White "Perez Gormaz, Matias"]
[Black "Lazavik, Denis"]
[WhiteFideId "3406342"]
[BlackFideId "13515110"]
[WhiteElo "2414"]
[BlackElo "2436"]
[Result "1-0"]
[Round "03"]
[TimeControl "180+1"]
[Date "2021.05.25"]
[WhiteClock "0:00:05"]
[BlackClock "0:00:06"]

1. e4 {[%clk 0:03:00]}  e5 {[%clk 0:02:58]} 2. Nf3 {[%clk 0:03:01]}  Nc6 {[%clk 0:02:59]} 3. Bc4 {[%clk 0:03:01]}  Bc5 {[%clk 0:02:58]} 4. c3 {[%clk 0:03:01]}  Nf6 {[%clk 0:02:58]} 5. d3 {[%clk 0:03:02]}  d6 {[%clk 0:02:58]} 6. O-O {[%clk 0:03:02]}  a6 {[%clk 0:02:57]} 7. a4 {[%clk 0:03:02]}  h6 {[%clk 0:02:57]} 8. Re1 {[%clk 0:03:02]}  O-O {[%clk 0:02:57]} 9. h3 {[%clk 0:03:01]}  Be6 {[%clk 0:02:52]} 10. Bxe6 {[%clk 0:03:01]}  fxe6 {[%clk 0:02:53]} 11. b4 {[%clk 0:03:00]}  Ba7 {[%clk 0:02:53]} 12. Nbd2 {[%clk 0:03:01]}  Nh5 {[%clk 0:02:52]} 13. Ra2 {[%clk 0:02:55]}  Nf4 {[%clk 0:02:50]} 14. Nf1 {[%clk 0:02:51]}  Qe8 {[%clk 0:02:49]} 15. Kh2 {[%clk 0:02:33]}  Ne7 {[%clk 0:02:17]} 16. g3 {[%clk 0:02:27]}  Nh5 {[%clk 0:02:02]} 17. Kg2 {[%clk 0:02:20]}  Qg6 {[%clk 0:01:59]} 18. N1h2 {[%clk 0:02:12]}  Nf4+ {[%clk 0:01:56]} 19. Bxf4 {[%clk 0:02:06]}  Rxf4 {[%clk 0:01:56]} 20. Rae2 {[%clk 0:01:09]}  Raf8 {[%clk 0:01:46]} 21. d4 {[%clk 0:01:08]}  Kh8 {[%clk 0:01:09]} 22. dxe5 {[%clk 0:00:54]}  d5 {[%clk 0:01:08]} 23. Qc2 {[%clk 0:00:40]}  dxe4 {[%clk 0:01:04]} 24. Rxe4 {[%clk 0:00:40]}  Nd5 {[%clk 0:01:04]} 25. R4e2 {[%clk 0:00:14]}  Qxc2 {[%clk 0:00:29]} 26. Rxc2 {[%clk 0:00:14]}  Rc4 {[%clk 0:00:30]} 27. Rec1 {[%clk 0:00:13]}  a5 {[%clk 0:00:30]} 28. bxa5 {[%clk 0:00:02]}  Rxa4 {[%clk 0:00:18]} 29. Rb1 {[%clk 0:00:03]}  Rxa5 {[%clk 0:00:12]} 30. Rxb7 {[%clk 0:00:03]}  Bb6 {[%clk 0:00:12]} 31. Nd4 {[%clk 0:00:02]}  Re8 {[%clk 0:00:09]} 32. Nhf3 {[%clk 0:00:02]}  Rc5 {[%clk 0:00:09]} 33. Ne2 {[%clk 0:00:02]}  Ne7 {[%clk 0:00:07]} 34. c4 {[%clk 0:00:02]}  Nc6 {[%clk 0:00:07]} 35. Ra2 {[%clk 0:00:02]}  Nxe5 {[%clk 0:00:07]} 36. Nxe5 {[%clk 0:00:01]}  Rxe5 {[%clk 0:00:08]} 37. Nf4 {[%clk 0:00:02]}  Kh7 {[%clk 0:00:08]} 38. c5 {[%clk 0:00:02]}  Rxc5 {[%clk 0:00:07]} 39. Rd2 {[%clk 0:00:03]}  e5 {[%clk 0:00:07]} 40. Nh5 {[%clk 0:00:02]}  e4 {[%clk 0:00:07]} 41. g4 {[%clk 0:00:02]}  Re7 {[%clk 0:00:05]} 42. Ng3 {[%clk 0:00:02]}  e3 {[%clk 0:00:04]} 43. Re2 {[%clk 0:00:02]}  Rce5 {[%clk 0:00:03]} 44. fxe3 {[%clk 0:00:03]}  Rxe3 {[%clk 0:00:03]} 45. Rxe3 {[%clk 0:00:03]}  Rxe3 {[%clk 0:00:04]} 46. Nf5 {[%clk 0:00:03]}  Re2+ {[%clk 0:00:05]} 47. Kf3 {[%clk 0:00:04]}  Rc2 {[%clk 0:00:05]} 48. h4 {[%clk 0:00:03]}  Rc3+ {[%clk 0:00:06]} 49. Ke4 {[%clk 0:00:03]}  Rc4+ {[%clk 0:00:06]} 50. Kf3 {[%clk 0:00:03]}  Kg6 {[%clk 0:00:06]} 51. Ne7+ {[%clk 0:00:03]}  Kh7 {[%clk 0:00:04]} 52. Nd5 {[%clk 0:00:04]}  Ba5 {[%clk 0:00:04]} 53. h5 {[%clk 0:00:04]}  Rc5 {[%clk 0:00:05]} 54. Nf4 {[%clk 0:00:04]}  Kg8 {[%clk 0:00:02]} 55. Rb8+ {[%clk 0:00:02]}  Kf7 {[%clk 0:00:03]} 56. Ng6 {[%clk 0:00:03]}  Bb6 {[%clk 0:00:02]} 57. Rf8+ {[%clk 0:00:03]}  Ke6 {[%clk 0:00:03]} 58. Ra8 {[%clk 0:00:03]}  Rc3+ {[%clk 0:00:03]} 59. Ke4 {[%clk 0:00:03]}  Rc4+ {[%clk 0:00:03]} 60. Kf3 {[%clk 0:00:03]}  Rb4 {[%clk 0:00:02]} 61. Re8+ {[%clk 0:00:03]}  Kd7 {[%clk 0:00:03]} 62. Re2 {[%clk 0:00:04]}  Rb3+ {[%clk 0:00:03]} 63. Ke4 {[%clk 0:00:04]}  Rb4+ {[%clk 0:00:03]} 64. Kf5 {[%clk 0:00:05]}  Kc8 {[%clk 0:00:03]} 65. Ne7+ {[%clk 0:00:04]}  Kb7 {[%clk 0:00:03]} 66. Nd5 {[%clk 0:00:04]}  Rb5 {[%clk 0:00:04]} 67. Ke6 {[%clk 0:00:05]}  Bd4 {[%clk 0:00:03]} 68. Re4 {[%clk 0:00:05]}  Ba1 {[%clk 0:00:03]} 69. Rc4 {[%clk 0:00:04]}  c6 {[%clk 0:00:03]} 70. Ne7 {[%clk 0:00:04]}  Bf6 {[%clk 0:00:02]} 71. Nf5 {[%clk 0:00:05]}  Re5+ {[%clk 0:00:03]} 72. Kf7 {[%clk 0:00:04]}  Rd5 {[%clk 0:00:02]} 73. Nxg7 {[%clk 0:00:04]}  Ba1 {[%clk 0:00:03]} 74. Nf5 {[%clk 0:00:04]}  Rd7+ {[%clk 0:00:03]} 75. Kg6 {[%clk 0:00:04]}  Kc7 {[%clk 0:00:04]} 76. Rc1 {[%clk 0:00:03]}  Bb2 {[%clk 0:00:03]} 77. Rc2 {[%clk 0:00:04]}  Be5 {[%clk 0:00:04]} 78. Nxh6 {[%clk 0:00:04]}  Rd6+ {[%clk 0:00:04]} 79. Kf5 {[%clk 0:00:04]}  Bd4 {[%clk 0:00:04]} 80. g5 {[%clk 0:00:04]}  Rd5+ {[%clk 0:00:04]} 81. Kg4 {[%clk 0:00:04]}  Be3 {[%clk 0:00:04]} 82. Nf5 {[%clk 0:00:04]}  Bc5 {[%clk 0:00:04]} 83. g6 {[%clk 0:00:04]}  Bf8 {[%clk 0:00:03]} 84. g7 {[%clk 0:00:04]}  Bxg7 {[%clk 0:00:04]} 85. Nxg7 {[%clk 0:00:05]}  Rd1 {[%clk 0:00:04]} 86. Nf5 {[%clk 0:00:05]}  Rg1+ {[%clk 0:00:05]} 87. Ng3 {[%clk 0:00:05]}  Rh1 {[%clk 0:00:06]} 88. Nxh1 {[%clk 0:00:05]} 1-0


[Site "https://www.chess.com"]

[Event "Titled Tuesday Blitz May 25 2021"]
[White "Ponikarovsky, Alexey"]
[Black "Zemerov, Vladimir"]
[WhiteFideId "4122887"]
[BlackFideId "4111583"]
[WhiteElo "1944"]
[BlackElo "2277"]
[Result "1-0"]
[Round "03"]
[TimeControl "180+1"]
[Date "2021.05.25"]
[WhiteClock "0:00:52"]
[BlackClock "0:00:02"]

1. e4 {[%clk 0:03:00]}  g6 {[%clk 0:02:14]} 2. d4 {[%clk 0:02:59]}  Bg7 {[%clk 0:02:15]} 3. Nf3 {[%clk 0:02:59]}  d6 {[%clk 0:02:14]} 4. c4 {[%clk 0:02:59]}  Nf6 {[%clk 0:02:10]} 5. Nc3 {[%clk 0:02:58]}  O-O {[%clk 0:02:10]} 6. h3 {[%clk 0:02:53]}  Nc6 {[%clk 0:02:05]} 7. Be2 {[%clk 0:02:49]}  e5 {[%clk 0:02:05]} 8. d5 {[%clk 0:02:48]}  Nb8 {[%clk 0:02:02]} 9. O-O {[%clk 0:02:48]}  a5 {[%clk 0:01:44]} 10. Be3 {[%clk 0:02:47]}  Na6 {[%clk 0:01:43]} 11. Qd2 {[%clk 0:02:44]}  Qe8 {[%clk 0:01:37]} 12. Rfe1 {[%clk 0:02:44]}  Bd7 {[%clk 0:01:37]} 13. Bh6 {[%clk 0:02:39]}  Nh5 {[%clk 0:01:35]} 14. Bxg7 {[%clk 0:02:36]}  Kxg7 {[%clk 0:01:34]} 15. Kh2 {[%clk 0:02:34]}  Nf4 {[%clk 0:01:32]} 16. Bf1 {[%clk 0:02:31]}  Qc8 {[%clk 0:01:31]} 17. Ne2 {[%clk 0:02:26]}  Nxe2 {[%clk 0:01:28]} 18. Qxe2 {[%clk 0:02:27]}  Nc5 {[%clk 0:01:28]} 19. Rad1 {[%clk 0:02:21]}  h6 {[%clk 0:01:26]} 20. Qe3 {[%clk 0:02:18]}  f5 {[%clk 0:01:23]} 21. exf5 {[%clk 0:02:15]}  Rxf5 {[%clk 0:01:21]} 22. a3 {[%clk 0:02:01]}  a4 {[%clk 0:01:19]} 23. Bd3 {[%clk 0:01:55]}  Rh5 {[%clk 0:01:08]} 24. Bf1 {[%clk 0:01:49]}  Bf5 {[%clk 0:01:03]} 25. Kg1 {[%clk 0:01:46]}  Bc2 {[%clk 0:00:57]} 26. Rc1 {[%clk 0:01:44]}  Bb3 {[%clk 0:00:57]} 27. g4 {[%clk 0:01:37]}  Rg5 {[%clk 0:00:51]} 28. Nxg5 {[%clk 0:01:37]}  hxg5 {[%clk 0:00:51]} 29. Qxg5 {[%clk 0:01:37]}  Qf8 {[%clk 0:00:44]} 30. Rc3 {[%clk 0:01:28]}  Qf7 {[%clk 0:00:39]} 31. Rg3 {[%clk 0:01:24]}  Rf8 {[%clk 0:00:38]} 32. Qd2 {[%clk 0:01:22]}  e4 {[%clk 0:00:36]} 33. Bg2 {[%clk 0:01:20]}  Bxc4 {[%clk 0:00:33]} 34. Bxe4 {[%clk 0:01:16]}  Nxe4 {[%clk 0:00:30]} 35. Rxe4 {[%clk 0:01:17]}  Bxd5 {[%clk 0:00:31]} 36. Re1 {[%clk 0:01:14]}  Bc6 {[%clk 0:00:27]} 37. Rge3 {[%clk 0:01:10]}  Kg8 {[%clk 0:00:20]} 38. Qc2 {[%clk 0:00:56]}  Bd5 {[%clk 0:00:02]} 39. Re7 {[%clk 0:00:52]} 1-0


[Site "https://www.chess.com"]

[Event "Titled Tuesday Blitz May 25 2021"]
[White "Romanchuk, Viktor"]
[Black "Yoo, Christopher Woojin"]
[WhiteFideId "14109271"]
[BlackFideId "30909694"]
[WhiteElo "2242"]
[BlackElo "2009"]
[Result "0-1"]
[Round "03"]
[TimeControl "180+1"]
[Date "2021.05.25"]
[WhiteClock "0:00:01"]
[BlackClock "0:00:14"]

1. d4 {[%clk 0:03:00]}  Nf6 {[%clk 0:02:59]} 2. c4 {[%clk 0:03:00]}  e6 {[%clk 0:02:57]} 3. Nc3 {[%clk 0:02:59]}  Bb4 {[%clk 0:02:56]} 4. e3 {[%clk 0:02:59]}  c5 {[%clk 0:02:55]} 5. Ne2 {[%clk 0:03:00]}  d6 {[%clk 0:02:55]} 6. a3 {[%clk 0:03:00]}  Ba5 {[%clk 0:02:54]} 7. Rb1 {[%clk 0:02:55]}  Nc6 {[%clk 0:02:51]} 8. dxc5 {[%clk 0:02:51]}  dxc5 {[%clk 0:02:50]} 9. Qc2 {[%clk 0:02:52]}  O-O {[%clk 0:02:47]} 10. Ng3 {[%clk 0:02:42]}  h5 {[%clk 0:02:19]} 11. Bd2 {[%clk 0:02:33]}  h4 {[%clk 0:02:08]} 12. Nge4 {[%clk 0:02:32]}  Nxe4 {[%clk 0:02:08]} 13. Qxe4 {[%clk 0:02:25]}  Qg5 {[%clk 0:01:41]} 14. Qf4 {[%clk 0:02:11]}  Qxf4 {[%clk 0:01:37]} 15. exf4 {[%clk 0:02:11]}  Rd8 {[%clk 0:01:35]} 16. Rd1 {[%clk 0:01:58]}  Nd4 {[%clk 0:01:30]} 17. Ne4 {[%clk 0:01:44]}  Bxd2+ {[%clk 0:01:26]} 18. Rxd2 {[%clk 0:01:43]}  b6 {[%clk 0:01:26]} 19. Bd3 {[%clk 0:01:30]}  h3 {[%clk 0:01:20]} 20. O-O {[%clk 0:01:24]}  hxg2 {[%clk 0:01:19]} 21. Kxg2 {[%clk 0:01:22]}  Bb7 {[%clk 0:01:19]} 22. f3 {[%clk 0:01:21]}  Nf5 {[%clk 0:01:10]} 23. Kf2 {[%clk 0:01:14]}  Rd4 {[%clk 0:01:07]} 24. Be2 {[%clk 0:01:04]}  Rad8 {[%clk 0:00:55]} 25. Rxd4 {[%clk 0:00:58]}  Rxd4 {[%clk 0:00:56]} 26. Rd1 {[%clk 0:00:56]}  Kf8 {[%clk 0:00:47]} 27. Rxd4 {[%clk 0:00:49]}  Nxd4 {[%clk 0:00:48]} 28. Nd6 {[%clk 0:00:39]}  Ba6 {[%clk 0:00:44]} 29. Bd3 {[%clk 0:00:34]}  f5 {[%clk 0:00:42]} 30. Nb5 {[%clk 0:00:22]}  Bxb5 {[%clk 0:00:41]} 31. cxb5 {[%clk 0:00:22]}  Ke7 {[%clk 0:00:41]} 32. Ke3 {[%clk 0:00:20]}  Kf6 {[%clk 0:00:40]} 33. Bc4 {[%clk 0:00:19]}  e5 {[%clk 0:00:35]} 34. fxe5+ {[%clk 0:00:19]}  Kxe5 {[%clk 0:00:36]} 35. f4+ {[%clk 0:00:17]}  Kd6 {[%clk 0:00:27]} 36. Bd3 {[%clk 0:00:16]}  Kd5 {[%clk 0:00:25]} 37. Bf1 {[%clk 0:00:15]}  c4 {[%clk 0:00:24]} 38. h4 {[%clk 0:00:11]}  Nxb5 {[%clk 0:00:23]} 39. h5 {[%clk 0:00:10]}  Nd6 {[%clk 0:00:22]} 40. Bg2+ {[%clk 0:00:09]}  Kc5 {[%clk 0:00:22]} 41. Bh3 {[%clk 0:00:06]}  b5 {[%clk 0:00:21]} 42. Bg2 {[%clk 0:00:05]}  a5 {[%clk 0:00:22]} 43. Bf1 {[%clk 0:00:05]}  b4 {[%clk 0:00:22]} 44. axb4+ {[%clk 0:00:05]}  axb4 {[%clk 0:00:23]} 45. Bh3 {[%clk 0:00:05]}  b3 {[%clk 0:00:21]} 46. Bf1 {[%clk 0:00:03]}  Nb5 {[%clk 0:00:20]} 47. Bh3 {[%clk 0:00:01]}  Nd4 {[%clk 0:00:18]} 48. Kd2 {[%clk 0:00:01]}  Kb4 {[%clk 0:00:14]} 0-1


[Site "https://www.chess.com"]

[Event "Titled Tuesday Blitz May 25 2021"]
[White "Sadhwani, Raunak"]
[Black "Wieczorek, Oskar"]
[WhiteFideId "35093487"]
[BlackFideId "1133950"]
[WhiteElo "2514"]
[BlackElo "2258"]
[Result "1-0"]
[Round "03"]
[TimeControl "180+1"]
[Date "2021.05.25"]
[WhiteClock "0:01:00"]
[BlackClock "0:00:03"]

1. b3 {[%clk 0:03:00]}  e5 {[%clk 0:02:55]} 2. Bb2 {[%clk 0:03:01]}  Nc6 {[%clk 0:02:56]} 3. c4 {[%clk 0:03:01]}  Nf6 {[%clk 0:02:56]} 4. Nf3 {[%clk 0:03:02]}  d5 {[%clk 0:02:56]} 5. Nxe5 {[%clk 0:02:55]}  d4 {[%clk 0:02:49]} 6. Nxc6 {[%clk 0:02:50]}  bxc6 {[%clk 0:02:49]} 7. g3 {[%clk 0:02:48]}  c5 {[%clk 0:02:36]} 8. Bg2 {[%clk 0:02:48]}  Rb8 {[%clk 0:02:37]} 9. O-O {[%clk 0:02:47]}  h5 {[%clk 0:02:31]} 10. e3 {[%clk 0:02:40]}  Be7 {[%clk 0:02:10]} 11. h3 {[%clk 0:02:34]}  Rb6 {[%clk 0:01:51]} 12. exd4 {[%clk 0:02:34]}  cxd4 {[%clk 0:01:52]} 13. d3 {[%clk 0:02:33]}  h4 {[%clk 0:01:17]} 14. g4 {[%clk 0:02:33]}  Nxg4 {[%clk 0:00:46]} 15. hxg4 {[%clk 0:02:34]}  Rg6 {[%clk 0:00:47]} 16. Kh1 {[%clk 0:01:26]}  Bxg4 {[%clk 0:00:39]} 17. Bf3 {[%clk 0:01:24]}  Bxf3+ {[%clk 0:00:19]} 18. Qxf3 {[%clk 0:01:25]}  h3 {[%clk 0:00:20]} 19. Rg1 {[%clk 0:01:17]}  Rf6 {[%clk 0:00:09]} 20. Qe4 {[%clk 0:01:06]}  Rxf2 {[%clk 0:00:08]} 21. Bxd4 {[%clk 0:01:05]}  h2 {[%clk 0:00:03]} 22. Re1 {[%clk 0:01:00]} 1-0


[Site "https://www.chess.com"]

[Event "Titled Tuesday Blitz May 25 2021"]
[White "Sadovsky, Artem"]
[Black "Martin Carmona, Gaston Manuel"]
[WhiteFideId "4155840"]
[BlackFideId "22284567"]
[WhiteElo "2476"]
[BlackElo "2144"]
[Result "0-1"]
[Round "03"]
[TimeControl "180+1"]
[Date "2021.05.25"]
[WhiteClock "0:00:01"]
[BlackClock "0:00:12"]

1. Nf3 {[%clk 0:02:54]}  Nf6 {[%clk 0:03:00]} 2. g3 {[%clk 0:02:54]}  g6 {[%clk 0:02:59]} 3. Bg2 {[%clk 0:02:55]}  Bg7 {[%clk 0:03:00]} 4. O-O {[%clk 0:02:56]}  O-O {[%clk 0:03:01]} 5. c4 {[%clk 0:02:44]}  c5 {[%clk 0:03:00]} 6. Nc3 {[%clk 0:02:37]}  d5 {[%clk 0:03:00]} 7. a3 {[%clk 0:02:38]}  d4 {[%clk 0:02:57]} 8. Na4 {[%clk 0:02:36]}  Nfd7 {[%clk 0:02:54]} 9. d3 {[%clk 0:02:34]}  Nc6 {[%clk 0:02:53]} 10. b4 {[%clk 0:02:33]}  cxb4 {[%clk 0:02:50]} 11. axb4 {[%clk 0:02:34]}  Nxb4 {[%clk 0:02:50]} 12. Bb2 {[%clk 0:02:27]}  Nc6 {[%clk 0:02:49]} 13. e3 {[%clk 0:02:23]}  dxe3 {[%clk 0:02:43]} 14. fxe3 {[%clk 0:02:23]}  Bxb2 {[%clk 0:02:42]} 15. Nxb2 {[%clk 0:02:22]}  Nc5 {[%clk 0:02:32]} 16. d4 {[%clk 0:02:17]}  Ne4 {[%clk 0:02:32]} 17. Qd3 {[%clk 0:01:57]}  Bf5 {[%clk 0:02:28]} 18. g4 {[%clk 0:01:57]}  Ng3 {[%clk 0:02:07]} 19. gxf5 {[%clk 0:01:54]}  Nxf1 {[%clk 0:02:07]} 20. Rxf1 {[%clk 0:01:46]}  Qb6 {[%clk 0:01:37]} 21. Na4 {[%clk 0:01:43]}  Qb4 {[%clk 0:01:32]} 22. Nc5 {[%clk 0:01:42]}  Rad8 {[%clk 0:01:28]} 23. Ne4 {[%clk 0:01:28]}  gxf5 {[%clk 0:01:10]} 24. Ng3 {[%clk 0:01:19]}  e6 {[%clk 0:01:10]} 25. Nxf5 {[%clk 0:01:08]}  exf5 {[%clk 0:01:09]} 26. Qxf5 {[%clk 0:01:09]}  Qd6 {[%clk 0:00:47]} 27. Kh1 {[%clk 0:00:49]}  Qg6 {[%clk 0:00:46]} 28. Qf4 {[%clk 0:00:46]}  Kh8 {[%clk 0:00:42]} 29. Nh4 {[%clk 0:00:47]}  Qd6 {[%clk 0:00:33]} 30. Qf5 {[%clk 0:00:47]}  Ne7 {[%clk 0:00:31]} 31. Qh5 {[%clk 0:00:44]}  Ng6 {[%clk 0:00:30]} 32. Nf5 {[%clk 0:00:43]}  Qf6 {[%clk 0:00:28]} 33. Nh6 {[%clk 0:00:32]}  Qg7 {[%clk 0:00:27]} 34. Nf5 {[%clk 0:00:32]}  Qf6 {[%clk 0:00:28]} 35. e4 {[%clk 0:00:28]}  Rxd4 {[%clk 0:00:20]} 36. Nh6 {[%clk 0:00:17]}  Qe7 {[%clk 0:00:16]} 37. e5 {[%clk 0:00:15]}  Qxe5 {[%clk 0:00:15]} 38. Qf3 {[%clk 0:00:08]}  Rh4 {[%clk 0:00:13]} 39. Ng4 {[%clk 0:00:06]}  Qh5 {[%clk 0:00:14]} 40. Qf6+ {[%clk 0:00:06]}  Kg8 {[%clk 0:00:13]} 41. Bf3 {[%clk 0:00:01]}  Rxg4 {[%clk 0:00:12]} 0-1


[Site "https://www.chess.com"]

[Event "Titled Tuesday Blitz May 25 2021"]
[White "Samadov, Read"]
[Black "Seul, Georg"]
[WhiteFideId "13417444"]
[BlackFideId "4601653"]
[WhiteElo "2745"]
[BlackElo "2522"]
[Result "1/2-1/2"]
[Round "03"]
[TimeControl "180+1"]
[Date "2021.05.25"]
[WhiteClock "0:00:26"]
[BlackClock "0:00:28"]

1. d4 {[%clk 0:03:00]}  Nf6 {[%clk 0:02:59]} 2. c4 {[%clk 0:03:01]}  e6 {[%clk 0:02:59]} 3. Nc3 {[%clk 0:03:00]}  Bb4 {[%clk 0:03:00]} 4. Qc2 {[%clk 0:02:59]}  d6 {[%clk 0:02:59]} 5. a3 {[%clk 0:02:59]}  Bxc3+ {[%clk 0:02:59]} 6. Qxc3 {[%clk 0:02:59]}  Nbd7 {[%clk 0:02:59]} 7. Nf3 {[%clk 0:03:00]}  O-O {[%clk 0:02:54]} 8. g3 {[%clk 0:02:59]}  Re8 {[%clk 0:02:51]} 9. Bg2 {[%clk 0:03:00]}  e5 {[%clk 0:02:51]} 10. O-O {[%clk 0:02:59]}  e4 {[%clk 0:02:50]} 11. Nd2 {[%clk 0:02:55]}  d5 {[%clk 0:02:50]} 12. e3 {[%clk 0:02:54]}  c6 {[%clk 0:02:46]} 13. b4 {[%clk 0:02:52]}  Nf8 {[%clk 0:02:45]} 14. Bb2 {[%clk 0:02:49]}  h5 {[%clk 0:02:42]} 15. Rac1 {[%clk 0:02:45]}  Bg4 {[%clk 0:02:07]} 16. cxd5 {[%clk 0:02:40]}  cxd5 {[%clk 0:02:06]} 17. Qc7 {[%clk 0:02:40]}  Re7 {[%clk 0:02:05]} 18. Qxd8 {[%clk 0:02:38]}  Rxd8 {[%clk 0:02:05]} 19. h3 {[%clk 0:02:38]}  Be2 {[%clk 0:02:04]} 20. Rfe1 {[%clk 0:02:38]}  Bd3 {[%clk 0:02:04]} 21. a4 {[%clk 0:02:27]}  Ne6 {[%clk 0:02:02]} 22. b5 {[%clk 0:02:23]}  Ree8 {[%clk 0:02:02]} 23. Rc3 {[%clk 0:02:19]}  Rc8 {[%clk 0:02:01]} 24. Rec1 {[%clk 0:02:19]}  Rxc3 {[%clk 0:02:01]} 25. Rxc3 {[%clk 0:02:19]}  Rd8 {[%clk 0:01:49]} 26. Bf1 {[%clk 0:02:17]}  Bxf1 {[%clk 0:01:48]} 27. Kxf1 {[%clk 0:02:17]}  Kf8 {[%clk 0:01:47]} 28. Nb3 {[%clk 0:02:13]}  b6 {[%clk 0:01:44]} 29. Nc1 {[%clk 0:02:08]}  Ke8 {[%clk 0:01:43]} 30. Na2 {[%clk 0:02:08]}  Rd7 {[%clk 0:01:32]} 31. Rc8+ {[%clk 0:02:05]}  Rd8 {[%clk 0:01:32]} 32. Rxd8+ {[%clk 0:02:04]}  Nxd8 {[%clk 0:01:28]} 33. Nb4 {[%clk 0:02:04]}  Kd7 {[%clk 0:01:27]} 34. Ke2 {[%clk 0:01:51]}  Ne6 {[%clk 0:01:25]} 35. Nc6 {[%clk 0:01:48]}  a5 {[%clk 0:01:19]} 36. Ne5+ {[%clk 0:01:43]}  Ke8 {[%clk 0:01:19]} 37. Ba3 {[%clk 0:01:41]}  Nd7 {[%clk 0:01:16]} 38. Nc6 {[%clk 0:01:37]}  Ng5 {[%clk 0:01:11]} 39. h4 {[%clk 0:01:35]}  Ne6 {[%clk 0:01:10]} 40. Bd6 {[%clk 0:01:29]}  Nf6 {[%clk 0:00:50]} 41. Bb8 {[%clk 0:01:17]}  Nd7 {[%clk 0:00:42]} 42. Bd6 {[%clk 0:01:15]}  Nf6 {[%clk 0:00:41]} 43. Kf1 {[%clk 0:01:03]}  Kd7 {[%clk 0:00:37]} 44. Ba3 {[%clk 0:01:01]}  Ng4 {[%clk 0:00:37]} 45. Ke2 {[%clk 0:00:58]}  Nd8 {[%clk 0:00:35]} 46. Nxd8 {[%clk 0:00:37]}  Kxd8 {[%clk 0:00:35]} 47. Bd6 {[%clk 0:00:36]}  Kd7 {[%clk 0:00:33]} 48. Bb8 {[%clk 0:00:35]}  g6 {[%clk 0:00:29]} 49. Bf4 {[%clk 0:00:28]}  Nf6 {[%clk 0:00:28]} 50. Be5 {[%clk 0:00:26]} 1/2-1/2


[Site "https://www.chess.com"]